{"text_format":"1","workbook":"xlsx","n_sheets":3,"sheets":["Notas","Resumo dos Alunos","Critérios de Nota"],"not_rendered":{"charts":1,"images":1,"macros":1,"external_links":0,"defined_names":11,"comments":0,"pivot_tables":0},"unopened":[],"bounds":{"document_bytes":16777216,"sheet_cells":100000,"rows_first":2000,"rows_last":500,"rows_between":2000,"halvings":0,"cell_chars":16384,"cell_head_chars":4096},"cells_cut":0,"cells_raw":0,"read":"whole","date_system":"1900"}

{"sheet":"Notas","index":0,"n_rows":8,"n_cols":9,"rows_kept":8,"cut":false,"hidden":false,"merged":[]}
[null,"Nome da Turma"]
[null,"Nome do(a) Professor(a)",null,null,null,"Data do Trabalho","2011-01-18","2011-01-25","2011-02-01"]
[null,null,null,null,"Total de Pontos Possíveis ",{"$f":"SUM(TotalPontosAtribuições[#Data])","v":90},20,20,50]
[null,"Nome do(a) Aluno(a)","Desempenho","Nota","%","Total de Pontos Obtidos","Trabalho escrito em aula 1","Trabalho escrito em aula 2","Rascunho de Redação"]
[null,"Aluno(a) 1",{"$f":"DadosAluno[[#This Row],[Total de Pontos Obtidos]]","v":90},{"$f":"IFERROR(VLOOKUP(DadosAluno[[#This Row],[%]],TabelaNotas[],2,TRUE),\"\")","v":"A+"},{"$f":"IFERROR(DadosAluno[[#This Row],[Total de Pontos Obtidos]]/Total_de_Pontos,\"\")","v":1},{"$f":"IFERROR(SUM(DadosAluno[[#This Row],[Trabalho escrito em aula 1]]:OFFSET(F5,,COUNTA(TotalPontosAtribuições[]))),\"\")","v":90},20,20,50]
[null,"Aluno(a) 2",{"$f":"DadosAluno[[#This Row],[Total de Pontos Obtidos]]","v":60},{"$f":"IFERROR(VLOOKUP(DadosAluno[[#This Row],[%]],TabelaNotas[],2,TRUE),\"\")","v":"D"},{"$f":"IFERROR(DadosAluno[[#This Row],[Total de Pontos Obtidos]]/Total_de_Pontos,\"\")","v":0.66666666666666663},{"$f":"IFERROR(SUM(DadosAluno[[#This Row],[Trabalho escrito em aula 1]]:OFFSET(F6,,COUNTA(TotalPontosAtribuições[]))),\"\")","v":60},10,10,40]
[null,"Aluno(a) 3",{"$f":"DadosAluno[[#This Row],[Total de Pontos Obtidos]]","v":75},{"$f":"IFERROR(VLOOKUP(DadosAluno[[#This Row],[%]],TabelaNotas[],2,TRUE),\"\")","v":"B"},{"$f":"IFERROR(DadosAluno[[#This Row],[Total de Pontos Obtidos]]/Total_de_Pontos,\"\")","v":0.83333333333333337},{"$f":"IFERROR(SUM(DadosAluno[[#This Row],[Trabalho escrito em aula 1]]:OFFSET(F7,,COUNTA(TotalPontosAtribuições[]))),\"\")","v":75},20,15,40]
[null,"Nota/Pontuação Média",null,{"$f":"IFERROR(VLOOKUP(DadosAluno[[#Totals],[%]],TabelaNotas[],2,TRUE),\"\")","v":"B"},{"$f":"SUBTOTAL(101,DadosAluno[%])","v":0.83333333333333337},{"$f":"SUBTOTAL(101,DadosAluno[Total de Pontos Obtidos])","v":75},{"$f":"SUBTOTAL(101,DadosAluno[Trabalho escrito em aula 1])","v":16.666666666666668},{"$f":"SUBTOTAL(101,DadosAluno[Trabalho escrito em aula 2])","v":15},{"$f":"SUBTOTAL(101,DadosAluno[Rascunho de Redação])","v":43.333333333333336}]

{"sheet":"Resumo dos Alunos","index":1,"n_rows":51,"n_cols":8,"rows_kept":51,"cut":false,"hidden":false,"merged":[[7,1,7,3],[11,1,11,2],[35,1,44,7],[0,0,0,4]]}
["Nome de sua Escola"]
[null,{"$f":"Nome_do_Professor","v":"Nome do(a) Professor(a)"}]
[null,{"$f":"Nome_da_Turma","v":"Nome da Turma"}]
[null,"Progresso até esta data"]
[null,"2011-09-22"]
[]
[null,"Nome do(a) Aluno(a):"]
[null,"Aluno(a) 3"]
[]
[]
[null,"Classificação do(a) Aluno(a)",null,"Nota","Porcentagem","Pontos do(a) Aluno(a)","Total de Pontos","Média de Pontos"]
[null,{"$f":"IFERROR(_xlfn.RANK.EQ(VLOOKUP(B8,DadosAluno[],5,FALSE),DadosAluno[Total de Pontos Obtidos]) & \" de \"&COUNTA(DadosAluno[Nome do(a) Aluno(a)]) & \" alunos\",\"\")","v":"2 de 3 alunos"},null,{"$f":"IFERROR(VLOOKUP(NomeAluno,DadosAluno[],3,FALSE),\"\")","v":"B"},{"$f":"IFERROR(VLOOKUP(NomeAluno,DadosAluno[],4,FALSE),\"\")","v":0.83333333333333337},{"$f":"IFERROR(VLOOKUP(NomeAluno,DadosAluno[],5,FALSE),\"\")","v":75},{"$f":"Total_de_Pontos","v":90},{"$f":"IFERROR(VLOOKUP(E12,TabelaNotas[],3,TRUE),\"\")","v":3}]
[]
[]
[]
[]
[]
[]
[]
[]
[]
[]
[]
[]
[]
[]
[]
[]
[]
[]
[]
[]
[]
[]
[null,"Comentarios do(a) Professor(a)"]
[]
[]
[]
[]
[]
[]
[]
[]
[]
[]
[]
[]
[null,"Assinatura do Responsável (se necessário)"]
[]
[]
[null,"X",null,null,null,"Data:"]

{"sheet":"Critérios de Nota","index":2,"n_rows":20,"n_cols":4,"rows_kept":20,"cut":false,"hidden":false,"merged":[[4,1,4,3],[2,1,2,4]]}
[null,"Calcular Nota"]
[]
[null,"Digite os intervalos de porcentagem para cada nota na tabela abaixo para personalizar o modelo de acordo com seus critérios de nota. "]
[]
[null,"Tabela de Notas e Média de Pontos\n(Usada para calcular as notas dos alunos na planilha Notas)"]
[null,"Pontuação","Nota Obtida","Média de Pontos"]
[null,0,"F",0]
[null,0.6,"D-",0.67]
[null,0.63,"D",1]
[null,0.67,"D+",1.33]
[null,0.7,"C-",1.67]
[null,0.73,"C",2]
[null,0.77,"C+",2.33]
[null,0.8,"B-",2.67]
[null,0.83,"B",3]
[null,0.87,"B+",3.33]
[null,0.9,"A-",3.67]
[null,0.93,"A",4]
[null,0.97,"A+",4]
[null,"A pontuação e a Média de Pontos devem ser digitadas em ordem Crescente."]